lending/lending_fUSD_20260119
["ID","MTS","AMOUNT","RATE_DAILY","PERIOD"]
[402682419,1768800640411,-200.0,0.00016193,2]
[402682420,1768800640420,-150.0,0.00016197,2]
[402682421,1768800640429,-150.0,0.00016197,2]
[402682422,1768800640438,-525.29097459,0.00016197,2]
[402682423,1768800640447,-500.0,0.00016197,2]
[402682424,1768800640456,-500.0,0.00016197,2]
[402682425,1768800640465,-500.0,0.00016197,2]
[402682426,1768800640474,-539.68310483,0.00016197,2]
[402682427,1768800640483,-500.0,0.00016197,2]
[402682428,1768800640493,-511.30863973,0.00016197,2]
[402682429,1768800640504,-705.06,0.00016197,2]
[402682430,1768800640513,-289.14683953,0.00016197,2]
[402682431,1768800640522,-500.0,0.00016197,2]
[402682432,1768800640533,-500.0,0.00016197,2]
[402682433,1768800640542,-500.0,0.00016197,2]
[402682434,1768800640551,-499.99999983,0.00016197,2]
[402682435,1768800640560,-500.0,0.00016197,2]
[402682436,1768800640572,-160.31433437,0.00016197,2]
[402682437,1768800640581,-500.0,0.00016197,2]
[402682438,1768800640592,-500.0,0.00016197,2]
[402682439,1768800640601,-509.1441621,0.00016197,2]
[402682440,1768800640611,-500.0,0.00016197,2]
[402682441,1768800640620,-500.0,0.00016197,2]
[402682442,1768800640630,-432.68173668,0.00016197,2]
[402682443,1768800640639,-500.0,0.00016197,2]
[402682444,1768800640648,-500.0,0.00016197,2]
[402682445,1768800640658,-500.0,0.00016197,2]
[402682446,1768800640667,-500.0,0.00016197,2]
[402682447,1768800640677,-500.0,0.00016197,2]
[402682448,1768800640686,-500.0,0.00016197,2]
[402682449,1768800640695,-500.0,0.00016197,2]
[402682450,1768800640704,-318.85334381,0.00016197,2]
[402682451,1768800640714,-450.0,0.00016198,2]
[402682452,1768800640723,-450.0,0.00016198,2]
[402682453,1768800640732,-450.0,0.00016198,2]
[402682454,1768800640741,-450.0,0.00016198,2]
[402682455,1768800640750,-450.0,0.00016198,2]
[402682456,1768800640759,-450.0,0.00016198,2]
[402682457,1768800640768,-450.0,0.00016198,2]
[402682458,1768800640777,-450.0,0.00016198,2]
[402682459,1768800640786,-450.0,0.00016198,2]
[402682460,1768800640796,-450.0,0.00016198,2]
[402682461,1768800640805,-450.0,0.00016198,2]
[402682462,1768800640815,-450.0,0.00016198,2]
[402682463,1768800640824,-450.0,0.00016198,2]
[402682464,1768800640834,-450.0,0.00016198,2]
[402682465,1768800640844,-450.0,0.00016198,2]
[402682466,1768800640854,-450.0,0.00016198,2]
[402682467,1768800640864,-450.0,0.00016198,2]
[402682468,1768800640873,-450.0,0.00016198,2]
[402682469,1768800640883,-450.0,0.00016198,2]
[402682470,1768800640893,-450.0,0.00016198,2]
[402682471,1768800640902,-450.0,0.00016198,2]
[402682472,1768800640911,-450.0,0.00016198,2]
[402682473,1768800640921,-450.0,0.00016198,2]
[402682474,1768800640931,-450.0,0.00016198,2]
[402682475,1768800640940,-450.0,0.00016198,2]
[402682476,1768800640950,-450.0,0.00016198,2]
[402682477,1768800640959,-450.0,0.00016198,2]
[402682478,1768800640968,-450.0,0.00016198,2]
[402682479,1768800640978,-450.0,0.00016198,2]
[402682480,1768800640987,-450.0,0.00016198,2]
[402682481,1768800640996,-370.090272,0.00016198,2]
[402682482,1768800641006,-154.75286206,0.000162,2]
[402682483,1768800641016,-150.0,0.000162,2]
[402682484,1768800641025,-45032.37181463,0.000162,5]
[402682485,1768800641034,-534.0,0.00016244,2]
[402682486,1768800641044,-493.0,0.00016244,2]
[402682487,1768800641054,-500.0,0.00016244,2]
[402682488,1768800641065,-17433.87950876,0.00016246,2]
[402682489,1768800641074,-417.0916,0.00016296,2]
[402682490,1768800641084,-1431.8871,0.00016296,2]
[402682491,1768800641096,-1000.0,0.00016296,2]
[402682492,1768800641106,-534.0,0.00016299,2]
[402682493,1768800641115,-493.0,0.00016299,2]
[402682494,1768800641126,-500.0,0.00016299,2]
[402682495,1768800641137,-6573.85553782,0.00016343,2]
[402682496,1768800641147,-350.01,0.00016353,2]
[402682497,1768800641157,-151.0,0.00016353,2]
[402682498,1768800641166,-151.0,0.00016353,2]
[402682499,1768800641175,-534.0,0.00016353,2]
[402682500,1768800641185,-493.0,0.00016353,2]
[402682501,1768800641194,-500.0,0.00016353,2]
[402682502,1768800641204,-200.0,0.00016355,2]
[402682503,1768800641214,-500.0,0.00016356,2]
[402682504,1768800641223,-1400.0,0.00016356,2]
[402682505,1768800641232,-500.0,0.00016356,2]
[402682506,1768800641241,-151.0,0.00016358,2]
[402682507,1768800641251,-151.0,0.00016358,2]
[402682508,1768800641263,-166.66,0.00016363,2]
[402682509,1768800641273,-500.0,0.00016397,2]
[402682510,1768800641282,-523.03845054,0.00016397,2]
[402682511,1768800641292,-500.0,0.00016397,2]
[402682512,1768800641301,-500.0,0.00016397,2]
[402682513,1768800641310,-500.0,0.00016397,2]
[402682514,1768800641319,-150.29095928,0.00016397,2]
[402682515,1768800641328,-500.0,0.00016397,2]
[402682516,1768800641338,-500.0,0.00016397,2]
[402682517,1768800641347,-500.0,0.00016397,2]
[402682518,1768800641356,-500.0,0.00016397,2]
[402682519,1768800641365,-500.0,0.00016397,2]
[402682520,1768800641376,-500.0,0.00016397,2]
[402682521,1768800641386,-369.91760368,0.00016397,2]
[402682522,1768800641395,-500.0,0.00016397,2]
[402682523,1768800641406,-500.0,0.00016397,2]
[402682524,1768800641416,-500.0,0.00016397,2]
[402682525,1768800641427,-500.0,0.00016397,2]
[402682526,1768800641437,-500.0,0.00016397,2]
[402682527,1768800641448,-500.0,0.00016397,2]
[402682528,1768800641457,-500.0,0.00016397,2]
[402682529,1768800641467,-500.0,0.00016397,2]
[402682530,1768800641478,-500.0,0.00016397,2]
[402682531,1768800641491,-500.0,0.00016397,2]
[402682532,1768800641502,-511.80432216,0.00016397,2]
[402682533,1768800641513,-361.21,0.000164,2]
[402682534,1768800641523,-534.0,0.00016408,2]
[402682535,1768800641533,-493.0,0.00016408,2]
[402682536,1768800641543,-500.0,0.00016408,2]
[402682537,1768800641553,-298.70669878,0.00016423,2]
[402682538,1768800641566,-166.66,0.00016427,2]
[402682539,1768800641575,-500.0,0.00016438,2]
[402682540,1768800641584,-1168.58,0.00016438,2]
[402682541,1768800641594,-1168.58,0.00016438,2]
[402682542,1768800641603,-1168.58,0.00016438,2]
[402682543,1768800641612,-1168.58,0.00016438,2]
[402682544,1768800641622,-1168.58,0.00016438,2]
[402682545,1768800641631,-1168.58,0.00016438,2]
[402682546,1768800641640,-1168.58,0.00016438,2]
[402682547,1768800641649,-1168.58,0.00016438,2]
[402682548,1768800641659,-1168.58,0.00016438,2]
[402682549,1768800641668,-1168.58,0.00016438,2]
[402682550,1768800641677,-1168.58,0.00016438,2]
[402682551,1768800641686,-1168.58,0.00016438,2]
[402682552,1768800641695,-1168.58,0.00016438,2]
[402682553,1768800641703,-1168.58,0.00016438,2]
[402682554,1768800641713,-1168.58,0.00016438,2]
[402682555,1768800641722,-1168.58,0.00016438,2]
[402682556,1768800641731,-1168.58,0.00016438,2]
[402682557,1768800641740,-1168.58,0.00016438,2]
[402682558,1768800641750,-1168.58,0.00016438,2]
[402682559,1768800641759,-1168.58,0.00016438,2]
[402682560,1768800641768,-1168.58,0.00016438,2]
[402682561,1768800641778,-1168.58,0.00016438,2]
[402682562,1768800641787,-1168.58,0.00016438,2]
[402682563,1768800641796,-1168.68360185,0.00016438,2]
[402682564,1768800641806,-301.40535093,0.00016438,2]
[402682565,1768800641816,-603.26732736,0.00016438,2]
[402682566,1768800641825,-300.58340851,0.00016438,2]
[402682567,1768800641835,-372.22863913,0.00016438,2]
[402682568,1768800641845,-500.0,0.00016438,2]
[402682569,1768800641854,-500.0,0.00016438,2]
[402682570,1768800641863,-500.0,0.00016438,2]
[402682571,1768800641873,-500.0,0.00016438,2]
[402682572,1768800641882,-500.0,0.00016438,2]
[402682573,1768800641891,-500.0,0.00016438,2]
[402682574,1768800641900,-500.0,0.00016438,2]
[402682575,1768800641912,-250.0,0.00016438,2]
[402682576,1768800641921,-500.0,0.00016438,2]
[402682577,1768800641931,-500.0,0.00016438,2]
[402682578,1768800641941,-500.0,0.00016438,2]
[402682579,1768800641950,-500.0,0.00016438,2]
[402682580,1768800641959,-500.0,0.00016438,2]
[402682581,1768800641968,-500.0,0.00016438,2]
[402682582,1768800641977,-500.0,0.00016438,2]
[402682583,1768800641986,-500.0,0.00016438,2]
[402682584,1768800641995,-500.0,0.00016438,2]
[402682585,1768800642005,-500.0,0.00016438,2]
[402682586,1768800642014,-500.0,0.00016438,2]
[402682587,1768800642024,-500.0,0.00016438,2]
[402682588,1768800642034,-500.0,0.00016438,2]
[402682589,1768800642043,-500.0,0.00016438,2]
[402682590,1768800642052,-500.0,0.00016438,2]
[402682591,1768800642063,-500.0,0.00016438,2]
[402682592,1768800642073,-500.0,0.00016438,2]
[402682593,1768800642082,-500.0,0.00016438,2]
[402682594,1768800642091,-500.0,0.00016438,2]
[402682595,1768800642100,-500.0,0.00016438,2]
[402682596,1768800642109,-500.0,0.00016438,2]
[402682597,1768800642119,-500.0,0.00016438,2]
[402682598,1768800642131,-181.7090782,0.00016438,2]
[402682599,1768800642140,-500.0,0.00016438,2]
[402682600,1768800642149,-500.0,0.00016438,2]
[402682601,1768800642159,-500.0,0.00016438,2]
[402682602,1768800642168,-500.0,0.00016438,2]
[402682603,1768800642178,-500.0,0.00016438,2]
[402682604,1768800642187,-500.0,0.00016438,2]
[402682605,1768800642196,-500.0,0.00016438,2]
[402682606,1768800642205,-500.0,0.00016438,2]
[402682607,1768800642215,-500.0,0.00016438,2]
[402682608,1768800642224,-500.0,0.00016438,2]
[402682609,1768800642236,-500.0,0.00016438,2]
[402682610,1768800642246,-800.0,0.00016438,2]
[402682611,1768800642256,-157.48,0.0001646,2]
[402682613,1768800642265,-534.0,0.00016463,2]
[402682614,1768800642274,-493.0,0.00016463,2]
[402682615,1768800642283,-500.0,0.00016463,2]
[402682616,1768800642292,-495.50884373,0.00016465,2]
[402682618,1768800642301,-874.13633489,0.00016465,2]
[402682619,1768800642310,-1307.65567833,0.00016465,2]
[402682620,1768800642320,-1769.2983,0.00016465,2]
[402682621,1768800642329,-394.83897212,0.0001647,2]
[402682622,1768800642338,-705.06,0.00016471,2]
[402682623,1768800642348,-157.48,0.00016515,2]
[402682624,1768800642357,-534.0,0.00016518,2]
[402682626,1768800642366,-493.0,0.00016518,2]
[402682628,1768800642374,-500.0,0.00016518,2]
[402682633,1768800642393,-500.0,0.00016518,2]
[402682635,1768800642403,-150.0,0.00016518,2]
[402682637,1768800642412,-500.0,0.00016518,2]
[402682639,1768800642421,-150.0,0.00016518,2]
[402682641,1768800642430,-500.0,0.00016518,2]
[402682643,1768800642439,-500.0,0.00016518,2]
[402682645,1768800642447,-249.07582255,0.00016518,2]
[402682647,1768800642456,-150.0,0.00016518,2]
[402682649,1768800642465,-200.0,0.00016519,2]
[402682651,1768800642474,-6573.85553782,0.00016565,2]
[402682653,1768800642483,-157.48,0.0001657,2]
[402682655,1768800642492,-534.0,0.00016573,2]
[402682657,1768800642504,-493.0,0.00016573,2]
[402682659,1768800642513,-500.0,0.00016573,2]
[402682661,1768800642521,-156.14638917,0.00016573,2]
[402682663,1768800642530,-500.0,0.00016573,2]
[402682665,1768800642541,-250.0,0.00016573,2]
[402682666,1768800642550,-500.0,0.00016573,2]
[402682668,1768800642559,-500.0,0.00016573,2]
[402682670,1768800642568,-150.0,0.00016573,2]
[402682671,1768800642577,-4319.62586682,0.00016573,2]
[402682672,1768800642586,-2045.65935531,0.00016573,2]
[402682673,1768800642596,-982.0402849,0.00016573,2]
[402682674,1768800642605,-157.48,0.00016624,2]
[402682675,1768800642614,-534.0,0.00016627,2]
[402682676,1768800642623,-493.0,0.00016627,2]
[402682677,1768800642632,-500.0,0.00016628,2]
[402682678,1768800642641,-500.0,0.00016628,2]
[402682679,1768800642650,-150.0,0.00016628,2]
[402682680,1768800642658,-500.0,0.00016628,2]
[402682681,1768800642667,-150.0,0.00016628,2]
[402682682,1768800642677,-1000.0,0.00016678,2]
[402682683,1768800642686,-157.48,0.00016679,2]
[402682684,1768800642695,-166.66,0.00016681,2]
[402682685,1768800642704,-534.0,0.00016682,2]
[402682686,1768800642713,-493.0,0.00016682,2]
[402682687,1768800642722,-500.0,0.00016682,2]
[402682688,1768800642730,-160.2774242,0.00016682,2]
[402682689,1768800642739,-500.0,0.00016682,2]
[402682690,1768800642748,-150.0,0.00016682,2]
[402682691,1768800642757,-200.0,0.00016684,2]
[402682692,1768800642766,-271.92678904,0.00016691,2]
[402682693,1768800642774,-196304.75585459,0.000167,2]
[402682694,1768800642783,-271.929972,0.000167,2]
[402682695,1768800642792,-271.929972,0.000167,2]
[402682696,1768800642801,-271.929972,0.000167,2]
[402682697,1768800642810,-271.929972,0.000167,2]
[402682698,1768800642819,-2097.0,0.00016701,2]
[402682699,1768800642828,-298.70669878,0.00016719,2]
[402682700,1768800642837,-157.48,0.00016734,2]
[402682701,1768800642847,-534.0,0.00016737,2]
[402682702,1768800642856,-493.0,0.00016737,2]
[402682703,1768800642865,-500.0,0.00016737,2]
[402682704,1768800642874,-500.0,0.00016737,2]
[402682705,1768800642884,-150.0,0.00016737,2]
[402682706,1768800642893,-705.06,0.00016745,2]
[402682707,1768800642902,-394.83897212,0.00016756,2]
[402682709,1768800642911,-157.48,0.00016789,2]
[402682710,1768800642920,-534.0,0.00016792,2]
[402682711,1768800642935,-493.0,0.00016792,2]
[402682712,1768800642945,-500.0,0.00016792,2]
[402682713,1768800642954,-500.0,0.00016792,2]
[402682714,1768800642965,-250.0,0.00016792,2]
[402682715,1768800642975,-157.48,0.00016844,2]
[402682716,1768800642985,-534.0,0.00016847,2]
[402682717,1768800642995,-493.0,0.00016847,2]
[402682718,1768800643004,-500.0,0.00016847,2]
[402682719,1768800643014,-500.0,0.00016847,2]
[402682720,1768800643024,-1163.0,0.00016892,2]
[402682721,1768800643034,-157.48,0.00016899,2]
[402682722,1768800643043,-800.0,0.000169,6]
[402682723,1768800643053,-534.0,0.00016901,2]
[402682724,1768800643063,-493.0,0.00016901,2]
[402682725,1768800643073,-500.0,0.00016902,2]
[402682726,1768800643083,-500.0,0.00016902,2]
[402682727,1768800643096,-25952.27,0.00016922,2]
[402682728,1768800643106,-157.48,0.00016954,2]
[402682729,1768800643116,-534.0,0.00016956,2]
[402682730,1768800643127,-493.0,0.00016956,2]
[402682731,1768800643137,-500.0,0.00016956,2]
[402682732,1768800643147,-500.0,0.00016956,2]
[402682733,1768800643157,-250.0,0.00017,2]
[402682734,1768800643168,-157.48,0.00017009,2]
[402682735,1768800643178,-534.0,0.00017011,2]
[402682736,1768800643188,-493.0,0.00017011,2]
[402682737,1768800643199,-500.0,0.00017011,2]
[402682738,1768800643209,-500.0,0.00017011,2]
[402682739,1768800643218,-298.70669878,0.00017014,2]
[402682740,1768800643227,-705.06,0.00017019,2]
[402682741,1768800643237,-984.56,0.00017041,2]
[402682742,1768800643246,-663.01,0.00017041,2]
[402682743,1768800643256,-663.01,0.00017041,2]
[402682744,1768800643265,-663.01,0.00017041,2]
[402682745,1768800643275,-663.01,0.00017041,2]
[402682746,1768800643285,-663.01,0.00017041,2]
[402682747,1768800643295,-673.76,0.00017041,2]
[402682748,1768800643305,-394.83897212,0.00017042,2]
[402682749,1768800643314,-157.48,0.00017063,2]
[402682750,1768800643324,-534.0,0.00017066,2]
[402682751,1768800643334,-493.0,0.00017066,2]
[402682752,1768800643345,-500.0,0.00017066,2]
[402682753,1768800643355,-455.74500359,0.00017066,2]
[402682754,1768800643365,-166.66,0.00017078,2]
[402682755,1768800643374,-578.20924308,0.00017099,2]
[402682756,1768800643384,-174.61919141,0.00017099,2]
[402682757,1768800643394,-721.12765535,0.00017099,2]
[402682758,1768800643403,-1000.0,0.00017099,2]
[402682759,1768800643413,-1000.0,0.00017099,2]
[402682760,1768800643422,-1000.0,0.00017099,2]
[402682761,1768800643431,-1000.0,0.00017099,2]
[402682762,1768800643441,-2000.0,0.00017099,2]
[402682763,1768800643450,-1000.0,0.00017099,2]
[402682764,1768800643459,-2000.0,0.00017099,2]
[402682765,1768800643469,-151.0,0.00017099,2]
[402682766,1768800643479,-1000.0,0.00017099,2]
[402682767,1768800643495,-2000.0,0.00017099,2]
[402682768,1768800643505,-197.30205766,0.00017099,2]
[402682769,1768800643516,-194.416276,0.00017099,2]
[402682770,1768800643527,-2000.0,0.00017099,2]
[402682771,1768800643539,-2000.0,0.00017099,2]
[402682772,1768800643549,-1268.37155993,0.00017099,2]
[402682773,1768800643559,-322.6107,0.00017099,2]
[402682774,1768800643571,-1999.0,0.00017099,2]
[402682775,1768800643581,-1000.0,0.00017099,2]
[402682776,1768800643591,-574.12855637,0.00017099,2]
[402682777,1768800643603,-250.0,0.00017099,2]
[402682778,1768800643614,-1000.0,0.00017099,2]
[402682779,1768800643624,-250.0,0.00017099,2]
[402682780,1768800643634,-1049.25704845,0.00017099,2]
[402682781,1768800643644,-250.0,0.00017099,2]
[402682782,1768800643654,-250.0,0.00017099,2]
[402682783,1768800643664,-262.53296866,0.00017099,2]
[402682784,1768800643992,-349.0,0.00017099,2]
[402682785,1768800644003,-1163.0,0.00017105,2]
[402682786,1768800644013,-510.0,0.00017115,2]
[402682787,1768800644023,-157.48,0.00017118,2]
[402682788,1768800644033,-534.0,0.0001712,2]
[402682789,1768800644044,-493.0,0.0001712,2]
[402682790,1768800644056,-500.0,0.00017121,2]
[402682791,1768800644066,-1163.0,0.00017132,2]
[402682792,1768800644076,-157.48,0.00017173,2]
[402682793,1768800644086,-544.79683672,0.00017175,2]
[402682794,1768800644096,-509.2018649,0.00017175,2]
[402682795,1768800644106,-500.0,0.00017176,2]
[402682796,1768800644115,-1163.0,0.00017202,2]
[402682797,1768800644125,-500.0,0.00017224,2]
[402682798,1768800644135,-157.48,0.00017228,2]
[402682799,1768800644145,-522.1770492,0.0001723,2]
[402682800,1768800644155,-1000.0,0.0001726,2]
[402682801,1768800644164,-2134.0,0.00017277,2]
[402682802,1768800644174,-157.48,0.00017283,2]
[402682803,1768800644184,-705.06,0.00017293,2]
[402682804,1768800644193,-298.70669878,0.00017309,2]
[402682805,1768800644203,-394.83897212,0.00017328,2]
[402682806,1768800644213,-350.01,0.00017351,2]
[402682807,1768800644222,-1000.0,0.000174,6]
[402682808,1768800644231,-26242.2726812,0.00017457,2]
[402682809,1768800644241,-2097.0,0.0001746,2]
[402682810,1768800644251,-203.43081976,0.0001749,2]
[402682811,1768800644260,-497.71983474,0.0001749,2]
[402682812,1768800644270,-195.0,0.0001749,2]
[402682813,1768800644279,-298.07070388,0.0001749,2]
[402682814,1768800644289,-195.0,0.0001749,2]
[402682815,1768800644298,-2134.0,0.000175,2]
[402682816,1768800644307,-10441.01257835,0.000175,2]
[402682817,1768800644317,-2000.0,0.000175,2]
[402682818,1768800644326,-1300.0,0.000175,6]
[402682819,1768800644336,-250.0,0.00017507,2]
[402682820,1768800644346,-1000.0,0.00017507,2]
[402682821,1768800644355,-302.77664069,0.00017507,2]
[402682822,1768800644366,-12727.52577805,0.0001751,2]
[402682823,1768800644376,-1680.0,0.00017517,2]
[402682824,1768800644386,-1600.0,0.00017534,2]
[402682825,1768800644395,-1000.0,0.00017534,2]
[402682826,1768800644404,-500.0,0.00017543,2]
[402682827,1768800644414,-1296.7,0.00017564,2]
[402682828,1768800644423,-705.06,0.00017567,2]
[402682829,1768800644433,-195.0,0.00017576,2]
[402682830,1768800644443,-160.35608488,0.00017576,2]
[402682831,1768800644452,-172.57,0.00017586,2]
[402682832,1768800644461,-155.58622274,0.00017589,2]
[402682833,1768800644471,-193.57104758,0.00017597,2]
[402682834,1768800644480,-300.0,0.00017597,2]
[402682835,1768800644492,-284.59069559,0.00017597,2]
[402682836,1768800644502,-195.0,0.00017597,2]
[402682837,1768800644511,-250.0,0.00017598,2]
[402682838,1768800644521,-300.0,0.00017598,2]
[402682839,1768800644532,-300.0,0.00017598,2]
[402682840,1768800644542,-200.0,0.00017598,2]
[402682841,1768800644552,-200.0,0.00017598,2]
[402682842,1768800644561,-200.0,0.00017598,2]
[402682843,1768800644572,-200.0,0.00017598,2]
[402682844,1768800644583,-200.0,0.000176,6]
[402682845,1768800644592,-298.70669878,0.00017605,2]
[402682846,1768800644603,-1296.7,0.00017607,2]
[402682847,1768800644613,-394.83897212,0.00017614,2]
[402682848,1768800644623,-496.29972123,0.00017625,2]
[402682849,1768800644632,-500.0,0.0001764,2]
[402682850,1768800644642,-548.06272836,0.0001764,2]
[402682851,1768800644651,-181.08010149,0.00017647,2]
[402682852,1768800644661,-595.37131296,0.00017647,2]
[402682853,1768800644671,-1296.7,0.00017651,2]
[402682854,1768800644680,-541.0,0.0001768,2]
[402682855,1768800644690,-1296.7,0.00017695,2]
[402682856,1768800644699,-200.0,0.000177,6]
[402682857,1768800644709,-12727.52577805,0.00017705,2]
[402682858,1768800644719,-390.5976987,0.00017725,2]
[402682859,1768800644729,-150.0,0.00017726,2]
[402682860,1768800644741,-1400.0,0.00017726,7]
[402682861,1768800644750,-500.0,0.00017727,2]
[402682862,1768800644760,-166.66,0.00017729,2]
[402682863,1768800644770,-1296.7,0.00017738,2]
[402682864,1768800644779,-151.60783167,0.0001774,2]
[402682865,1768800644788,-1000.0,0.00017745,2]
[402682866,1768800644798,-750.0,0.00017745,2]
[402682867,1768800644807,-1348.0,0.00017747,2]
[402682868,1768800644818,-496.29972121,0.00017763,2]
[402682869,1768800644827,-750.0,0.00017779,2]
[402682870,1768800644837,-150.0,0.00017781,2]
[402682871,1768800644847,-1296.7,0.00017782,2]
[402682872,1768800644857,-200.0,0.000178,6]
[402682873,1768800644867,-1000.0,0.00017808,2]
[402682874,1768800644876,-1296.7,0.00017825,2]
[402682875,1768800644885,-5224.98447911,0.0001783,2]
[402682876,1768800644896,-1027.83837402,0.00017839,2]
[402682877,1768800644905,-705.06,0.00017841,2]
[402682878,1768800644915,-200.0,0.00017856,2]
[402682879,1768800644926,-1296.7,0.00017869,2]
[402682880,1768800644936,-2134.0,0.0001787,2]
[402682881,1768800644946,-750.0,0.0001788,2]
[402682882,1768800644956,-25000.0,0.00017891,3]
[402682883,1768800644966,-298.70669878,0.000179,2]
[402682884,1768800644975,-25000.0,0.000179,3]
[402682885,1768800644985,-12727.52577805,0.000179,2]
[402682886,1768800644995,-200.0,0.000179,6]
[402682887,1768800645006,-1003.35319518,0.000179,2]
[402682888,1768800645015,-1003.35319499,0.000179,2]
[402682889,1768800645025,-1003.35319499,0.000179,2]
[402682890,1768800645035,-1003.35319499,0.000179,2]
[402682891,1768800645044,-1003.35319499,0.000179,2]
[402682892,1768800645055,-1003.35319499,0.000179,2]
[402682893,1768800645066,-1003.35319499,0.000179,2]
[402682894,1768800645075,-1003.35319499,0.000179,2]
[402682895,1768800645085,-1003.35319499,0.000179,2]
[402682896,1768800645095,-1003.35319499,0.000179,2]
[402682897,1768800645104,-1003.35319499,0.000179,2]
[402682898,1768800645114,-1003.35319499,0.000179,2]
[402682899,1768800645123,-1003.35319499,0.000179,2]
[402682900,1768800645134,-1003.35319499,0.000179,2]
[402682901,1768800645143,-1003.35319499,0.000179,2]
[402682902,1768800645154,-1003.35319499,0.000179,2]
[402682903,1768800645163,-1003.35319499,0.000179,2]
[402682904,1768800645173,-1003.35319499,0.000179,2]
[402682905,1768800645183,-1003.35319499,0.000179,2]
[402682906,1768800645193,-1003.35319499,0.000179,2]
[402682907,1768800645202,-394.83897212,0.000179,2]
[402682908,1768800645211,-1669.55386707,0.000179,2]
[402682909,1768800645221,-10117.10825468,0.000179,2]
[402682910,1768800645231,-496.29972121,0.000179,2]
[402682911,1768800645240,-500.0,0.000179,2]
[402682912,1768800645250,-500.0,0.000179,2]
[402682913,1768800645259,-500.0,0.000179,2]
[402682914,1768800645268,-500.0,0.000179,2]
[402682915,1768800645278,-500.0,0.000179,2]
[402682916,1768800645287,-500.0,0.000179,2]
[402682917,1768800645296,-500.0,0.000179,2]
[402682918,1768800645306,-500.0,0.000179,2]
[402682919,1768800645315,-500.0,0.000179,2]
[402682920,1768800645324,-500.0,0.000179,2]
[402682921,1768800645333,-500.0,0.000179,2]
[402682922,1768800645343,-500.0,0.000179,2]
[402682923,1768800645354,-500.0,0.000179,2]
[402682924,1768800645364,-500.0,0.000179,2]
[402682925,1768800645374,-500.0,0.000179,2]
[402682926,1768800645384,-500.0,0.000179,2]
[402682927,1768800645394,-500.0,0.000179,2]
[402682928,1768800645403,-500.0,0.000179,2]
[402682929,1768800645413,-500.0,0.000179,2]
[402682930,1768800645423,-500.0,0.000179,2]
[402682931,1768800645432,-500.0,0.000179,2]
[402682932,1768800645441,-500.0,0.000179,2]
[402682933,1768800645451,-500.0,0.000179,2]
[402682934,1768800645461,-500.0,0.000179,2]
[402682935,1768800645471,-500.0,0.000179,2]
[402682936,1768800645480,-500.0,0.000179,2]
[402682937,1768800645490,-500.0,0.000179,2]
[402682938,1768800645503,-500.0,0.000179,2]
[402682939,1768800645512,-500.0,0.000179,2]
[402682940,1768800645521,-500.0,0.000179,2]
[402682941,1768800645531,-4582.0,0.000179,2]
[402682942,1768800645542,-350.01,0.00017911,2]
[402682943,1768800645551,-750.0,0.00017912,2]
[402682944,1768800645562,-1296.7,0.00017913,2]
[402682945,1768800645572,-750.0,0.00017917,2]